fUSD/lending_fUSD_20250826
["ID","MTS","AMOUNT","RATE_DAILY","PERIOD"]
[381484708,1756230736794,-400.0,0.00028219,5]
[381484709,1756230736807,-400.0,0.00028219,5]
[381484710,1756230736817,-1337.38,0.00028219,5]
[381484711,1756230736827,-400.0,0.00028219,5]
[381484712,1756230736836,-1193.06,0.00028219,5]
[381484713,1756230736846,-643.48,0.00028219,5]
[381484714,1756230736856,-1262.91,0.00028219,5]
[381484715,1756230736865,-400.0,0.00028219,5]
[381484716,1756230736875,-1405.96,0.00028219,5]
[381484717,1756230736885,-1694.19,0.00028219,5]
[381484718,1756230736894,-400.0,0.00028219,5]
[381484719,1756230736904,-847.69,0.00028219,5]
[381484720,1756230736914,-1432.19,0.00028219,5]
[381484721,1756230736924,-837.85,0.00028219,5]
[381484722,1756230736933,-1265.35,0.00028219,5]
[381484723,1756230736942,-1066.71,0.00028219,5]
[381484724,1756230736951,-1337.65,0.00028219,5]
[381484725,1756230736961,-983.38,0.00028219,5]
[381484726,1756230736970,-448.3,0.00028219,5]
[381484727,1756230736980,-2638.84,0.00028219,5]
[381484728,1756230736990,-510.88,0.00028219,5]
[381484729,1756230736999,-1419.37,0.00028219,5]
[381484730,1756230737009,-1378.39,0.00028219,5]
[381484731,1756230737019,-866.21,0.00028219,5]
[381484732,1756230737028,-436.05,0.00028219,5]
[381484733,1756230737038,-1097.19,0.00028219,5]
[381484734,1756230737047,-968.52,0.00028219,5]
[381484735,1756230737056,-1097.27,0.00028219,5]
[381484736,1756230737066,-400.0,0.00028219,5]
[381484737,1756230737075,-400.0,0.00028219,5]
[381484738,1756230737084,-400.0,0.00028219,5]
[381484739,1756230737094,-898.9,0.00028219,5]
[381484740,1756230737103,-1054.02,0.00028219,5]
[381484741,1756230737113,-894.21,0.00028219,5]
[381484742,1756230737123,-400.0,0.00028219,5]
[381484743,1756230737132,-486.16,0.00028219,5]
[381484744,1756230737141,-400.0,0.00028219,5]
[381484745,1756230737151,-2351.0,0.00028219,5]
[381484746,1756230737160,-400.0,0.00028219,5]
[381484747,1756230737169,-400.0,0.00028219,5]
[381484748,1756230737179,-990.16,0.00028219,5]
[381484749,1756230737188,-400.0,0.00028219,5]
[381484750,1756230737197,-708.23,0.00028219,5]
[381484751,1756230737207,-812.56,0.00028219,5]
[381484752,1756230737216,-1481.93,0.00028219,5]
[381484753,1756230737226,-400.0,0.00028219,5]
[381484754,1756230737235,-1309.05,0.00028219,5]
[381484755,1756230737246,-400.0,0.00028219,5]
[381484756,1756230737256,-400.0,0.00028219,5]
[381484757,1756230737265,-12576.35,0.00028219,5]
[381484758,1756230737276,-400.0,0.00028219,5]
[381484759,1756230737286,-752.61,0.00028219,5]
[381484760,1756230737296,-716.67,0.00028219,5]
[381484761,1756230737306,-440.38,0.00028219,5]
[381484762,1756230737316,-1045.55,0.00028219,5]
[381484763,1756230737325,-610.13,0.00028219,5]
[381484764,1756230737335,-1040.13,0.00028219,5]
[381484765,1756230737345,-1232.14,0.00028219,5]
[381484766,1756230737354,-400.0,0.00028219,5]
[381484767,1756230737364,-453.93,0.00028219,5]
[381484768,1756230737374,-400.0,0.00028219,5]
[381484769,1756230737383,-513.88,0.00028219,5]
[381484770,1756230737392,-460.12,0.00028219,5]
[381484771,1756230737402,-956.51,0.00028219,5]
[381484772,1756230737411,-1004.11,0.00028219,5]
[381484773,1756230737755,-2716.73,0.00028219,5]
[381484774,1756230737785,-1144.57,0.00028219,5]
[381484775,1756230737794,-1348.02,0.00028219,5]
[381484776,1756230737803,-400.0,0.00028219,5]
[381484777,1756230737812,-400.0,0.00028219,5]
[381484778,1756230737821,-401.14444034,0.00028219,5]
[381484779,1756230737831,-795.95,0.00028219,5]
[381484780,1756230737840,-720.68,0.00028219,5]
[381484781,1756230737850,-400.0,0.00028219,5]
[381484782,1756230737859,-583.37,0.00028219,5]
[381484783,1756230737868,-1164.87,0.00028219,5]
[381484784,1756230737877,-401.22491951,0.00028219,5]
[381484785,1756230737887,-796.49,0.00028219,5]
[381484786,1756230737896,-1208.11,0.00028219,5]
[381484787,1756230737905,-1234.75,0.00028219,5]
[381484788,1756230737915,-2365.85,0.00028219,5]
[381484789,1756230737925,-1090.57,0.00028219,5]
[381484790,1756230737935,-725.15,0.00028219,5]
[381484791,1756230737944,-400.0,0.00028219,5]
[381484792,1756230737954,-1204.31,0.00028219,5]
[381484793,1756230737963,-400.0,0.00028219,5]
[381484794,1756230737973,-607.03,0.00028219,5]
[381484795,1756230737983,-1391.48,0.00028219,5]
[381484796,1756230737995,-400.0,0.00028219,5]
[381484797,1756230738006,-1460.18,0.00028219,5]
[381484798,1756230738017,-774.92,0.00028219,5]
[381484799,1756230738027,-949.27,0.00028219,5]
[381484800,1756230738037,-1529.6,0.00028219,5]
[381484801,1756230738047,-1381.91,0.00028219,5]
[381484802,1756230738057,-400.0,0.00028219,5]
[381484803,1756230738066,-1214.51,0.00028219,5]
[381484804,1756230738076,-681.18,0.00028219,5]
[381484805,1756230738086,-846.41,0.00028219,5]
[381484806,1756230738096,-870.23,0.00028219,5]
[381484807,1756230738106,-2660.08,0.00028219,5]
[381484808,1756230738115,-1268.24,0.00028219,5]
[381484809,1756230738125,-1218.74,0.00028219,5]
[381484810,1756230738134,-960.42,0.00028219,5]
[381484811,1756230738144,-727.24,0.00028219,5]
[381484812,1756230738154,-836.11,0.00028219,5]
[381484813,1756230738164,-1206.86,0.00028219,5]
[381484814,1756230738174,-935.16,0.00028219,5]
[381484815,1756230738184,-400.0,0.00028219,5]
[381484816,1756230738194,-1646.5,0.00028219,5]
[381484817,1756230738203,-5333.52,0.00028219,5]
[381484818,1756230738213,-696.66,0.00028219,5]
[381484819,1756230738223,-400.0,0.00028219,5]
[381484820,1756230738233,-446.0,0.00028219,5]
[381484821,1756230738243,-400.0,0.00028219,5]
[381484822,1756230738252,-400.0,0.00028219,2]
[381484823,1756230738262,-859.49,0.00028219,5]
[381484824,1756230738272,-1578.12,0.00028219,5]
[381484825,1756230738282,-928.83,0.00028219,5]
[381484826,1756230738291,-604.92,0.00028219,5]
[381484827,1756230738301,-400.0,0.00028219,5]
[381484828,1756230738311,-1272.58,0.00028219,5]
[381484829,1756230738321,-400.0,0.00028219,5]
[381484830,1756230738330,-714.94,0.00028219,5]
[381484831,1756230738340,-400.0,0.00028219,5]
[381484832,1756230738351,-752.58,0.00028219,5]
[381484833,1756230738360,-636.63,0.00028219,5]
[381484834,1756230738370,-400.0,0.00028219,5]
[381484835,1756230738380,-509.15740549,0.00028219,2]
[381484836,1756230738390,-400.0,0.00028219,5]
[381484837,1756230738400,-525.95,0.00028219,5]
[381484838,1756230738410,-1703.78,0.00028219,5]
[381484839,1756230738420,-400.0,0.00028219,5]
[381484840,1756230738430,-607.66,0.00028219,5]
[381484841,1756230738440,-1622.59,0.00028219,5]
[381484842,1756230738450,-1425.0,0.0002822,2]
[381484843,1756230738459,-1425.0,0.00028237,2]
[381484844,1756230738469,-500.0,0.00028272,2]
[381484845,1756230738479,-500.0,0.00028272,2]
[381484846,1756230738489,-500.0,0.00028272,2]
[381484847,1756230738498,-500.0,0.00028272,2]
[381484848,1756230738508,-500.0,0.00028272,2]
[381484849,1756230738517,-500.0,0.00028272,2]
[381484850,1756230738527,-500.0,0.00028272,2]
[381484851,1756230738537,-500.0,0.00028272,2]
[381484852,1756230738547,-500.0,0.00028272,2]
[381484853,1756230738557,-500.0,0.00028272,2]
[381484854,1756230738566,-500.0,0.00028272,2]
[381484855,1756230738576,-500.0,0.00028272,2]
[381484856,1756230738586,-500.0,0.00028272,2]
[381484857,1756230738595,-500.0,0.00028272,2]
[381484858,1756230738605,-500.0,0.00028272,2]
[381484859,1756230738615,-500.0,0.00028272,2]
[381484860,1756230738624,-500.0,0.00028272,2]
[381484861,1756230738634,-500.0,0.00028272,2]
[381484862,1756230738643,-500.0,0.00028272,2]
[381484863,1756230738652,-500.0,0.00028272,2]
[381484864,1756230738665,-500.0,0.00028272,2]
[381484865,1756230738675,-500.0,0.00028272,2]
[381484866,1756230738686,-500.0,0.00028272,2]
[381484867,1756230738696,-500.0,0.00028272,2]
[381484868,1756230738707,-550.0,0.00028272,2]
[381484869,1756230738717,-500.0,0.00028272,2]
[381484870,1756230738726,-500.0,0.00028272,2]
[381484871,1756230738735,-500.0,0.00028272,2]
[381484872,1756230738746,-500.0,0.00028272,2]
[381484873,1756230738756,-500.0,0.00028272,2]
[381484874,1756230738765,-500.0,0.00028272,2]
[381484875,1756230738774,-500.0,0.00028272,2]
[381484876,1756230738787,-500.0,0.00028272,2]
[381484877,1756230738797,-500.0,0.00028272,2]
[381484878,1756230738808,-500.0,0.00028272,2]
[381484879,1756230738818,-500.0,0.00028272,2]
[381484880,1756230738827,-500.0,0.00028272,2]
[381484881,1756230738836,-500.0,0.00028272,2]
[381484882,1756230738846,-500.0,0.00028272,2]
[381484883,1756230738855,-500.0,0.00028272,2]
[381484884,1756230738865,-500.0,0.00028272,2]
[381484885,1756230738874,-500.0,0.00028272,2]
[381484886,1756230738883,-500.0,0.00028272,2]
[381484887,1756230738893,-500.0,0.00028272,2]
[381484888,1756230738903,-500.0,0.00028272,2]
[381484889,1756230738913,-500.0,0.00028272,2]
[381484890,1756230738923,-500.0,0.00028272,2]
[381484891,1756230738932,-500.0,0.00028272,2]
[381484892,1756230738942,-500.0,0.00028272,2]
[381484893,1756230738952,-500.0,0.00028272,2]
[381484894,1756230738962,-500.0,0.00028272,2]
[381484895,1756230738971,-500.0,0.00028272,2]
[381484896,1756230738981,-500.0,0.00028272,2]
[381484897,1756230738992,-500.0,0.00028272,2]
[381484898,1756230739003,-500.0,0.00028272,2]
[381484899,1756230739013,-500.0,0.00028272,2]
[381484900,1756230739023,-500.0,0.00028272,2]
[381484901,1756230739033,-500.0,0.00028272,2]
[381484902,1756230739042,-500.0,0.00028272,2]
[381484903,1756230739052,-500.0,0.00028272,2]
[381484904,1756230739062,-500.0,0.00028272,2]
[381484905,1756230739071,-500.0,0.00028272,2]
[381484906,1756230739081,-500.0,0.00028272,2]
[381484907,1756230739090,-500.0,0.00028272,2]
[381484908,1756230739100,-500.0,0.00028272,2]
[381484909,1756230739110,-500.0,0.00028272,2]
[381484910,1756230739119,-500.0,0.00028272,2]
[381484911,1756230739129,-500.0,0.00028272,2]
[381484912,1756230739139,-500.0,0.00028272,2]
[381484913,1756230739148,-500.0,0.00028272,2]
[381484914,1756230739158,-500.0,0.00028272,2]
[381484915,1756230739168,-500.0,0.00028272,2]
[381484916,1756230739177,-500.0,0.00028272,2]
[381484917,1756230739187,-781.0,0.00028272,2]
[381484918,1756230739197,-500.0,0.00028272,2]
[381484919,1756230739207,-500.0,0.00028272,2]
[381484920,1756230739217,-500.0,0.00028272,2]
[381484921,1756230739226,-500.0,0.00028272,2]
[381484922,1756230739236,-500.0,0.00028272,2]
[381484923,1756230739248,-500.0,0.00028272,2]
[381484924,1756230739257,-500.0,0.00028272,2]
[381484925,1756230739267,-500.0,0.00028272,2]
[381484926,1756230739277,-500.0,0.00028272,2]
[381484927,1756230739286,-500.0,0.00028272,2]
[381484928,1756230739298,-500.0,0.00028272,2]
[381484929,1756230739307,-500.0,0.00028272,2]
[381484930,1756230739316,-500.0,0.00028272,2]
[381484931,1756230739327,-500.0,0.00028272,2]
[381484932,1756230739337,-500.0,0.00028272,2]
[381484933,1756230739346,-500.0,0.00028272,2]
[381484934,1756230739355,-500.0,0.00028272,2]
[381484935,1756230739365,-500.0,0.00028272,2]
[381484936,1756230739375,-500.0,0.00028272,2]
[381484937,1756230739384,-500.0,0.00028272,2]
[381484938,1756230739394,-500.0,0.00028272,2]
[381484939,1756230739404,-500.0,0.00028272,2]
[381484940,1756230739414,-500.0,0.00028272,2]
[381484941,1756230739424,-500.0,0.00028272,2]
[381484942,1756230739433,-500.0,0.00028272,2]
[381484943,1756230739443,-500.0,0.00028272,2]
[381484944,1756230739453,-500.0,0.00028272,2]
[381484945,1756230739462,-500.0,0.00028272,2]
[381484946,1756230739471,-500.0,0.00028272,2]
[381484947,1756230739481,-500.0,0.00028272,2]
[381484948,1756230739491,-500.0,0.00028272,2]
[381484949,1756230739500,-500.0,0.00028272,2]
[381484950,1756230739510,-500.0,0.00028272,2]
[381484951,1756230739519,-500.0,0.00028272,2]
[381484952,1756230739529,-500.0,0.00028272,2]
[381484953,1756230739538,-500.0,0.00028272,2]
[381484954,1756230739547,-500.0,0.00028272,2]
[381484955,1756230739557,-500.0,0.00028272,2]
[381484956,1756230739565,-500.0,0.00028272,2]
[381484957,1756230739575,-500.0,0.00028272,2]
[381484958,1756230739585,-500.0,0.00028272,2]
[381484959,1756230739595,-500.0,0.00028272,2]
[381484960,1756230739604,-500.0,0.00028272,2]
[381484961,1756230739613,-941.0,0.00028272,2]
[381484962,1756230739623,-500.0,0.00028272,2]
[381484963,1756230739632,-500.0,0.00028272,2]
[381484964,1756230739642,-500.0,0.00028272,2]
[381484965,1756230739651,-500.0,0.00028272,2]
[381484966,1756230739665,-500.0,0.00028272,2]
[381484967,1756230739675,-500.0,0.00028272,2]
[381484968,1756230739684,-500.0,0.00028272,2]
[381484969,1756230739694,-500.0,0.00028272,2]
[381484970,1756230739703,-500.0,0.00028272,2]
[381484971,1756230739712,-500.0,0.00028272,2]
[381484972,1756230739723,-500.0,0.00028272,2]
[381484973,1756230739733,-500.0,0.00028272,2]
[381484974,1756230739747,-500.0,0.00028272,2]
[381484975,1756230739766,-500.0,0.00028272,2]
[381484976,1756230739776,-500.0,0.00028272,2]
[381484977,1756230739785,-500.0,0.00028272,2]
[381484978,1756230739795,-500.0,0.00028272,2]
[381484979,1756230739804,-500.0,0.00028272,2]
[381484980,1756230739814,-500.0,0.00028272,2]
[381484981,1756230739823,-500.0,0.00028272,2]
[381484982,1756230739834,-593.0,0.00028272,2]
[381484983,1756230739844,-500.0,0.00028272,2]
[381484984,1756230739855,-500.0,0.00028272,2]
[381484985,1756230739864,-500.0,0.00028272,2]
[381484986,1756230739873,-500.0,0.00028272,2]
[381484987,1756230739882,-500.0,0.00028272,2]
[381484988,1756230739892,-500.0,0.00028272,2]
[381484989,1756230739901,-500.0,0.00028272,2]
[381484990,1756230739911,-500.0,0.00028272,2]
[381484991,1756230739920,-500.0,0.00028272,2]
[381484992,1756230739929,-500.0,0.00028272,2]
[381484993,1756230739938,-500.0,0.00028272,2]
[381484994,1756230739947,-500.0,0.00028272,2]
[381484995,1756230739958,-500.0,0.00028272,2]
[381484996,1756230739979,-500.0,0.00028272,2]
[381484997,1756230739995,-500.0,0.00028272,2]
[381484998,1756230740006,-500.0,0.00028272,2]
[381484999,1756230740015,-500.0,0.00028272,2]
[381485000,1756230740024,-500.0,0.00028272,2]
[381485001,1756230740034,-500.0,0.00028272,2]
[381485002,1756230740044,-500.0,0.00028272,2]
[381485003,1756230740053,-500.0,0.00028272,2]
[381485004,1756230740063,-500.0,0.00028272,2]
[381485005,1756230740073,-500.0,0.00028272,2]
[381485006,1756230740082,-500.0,0.00028272,2]
[381485007,1756230740091,-500.0,0.00028272,2]
[381485008,1756230740101,-500.0,0.00028272,2]
[381485009,1756230740109,-500.0,0.00028272,2]
[381485010,1756230740118,-500.0,0.00028272,2]
[381485011,1756230740128,-593.0,0.00028272,2]
[381485012,1756230740231,-500.0,0.00028272,2]
[381485013,1756230740241,-500.0,0.00028272,2]
[381485014,1756230740250,-500.0,0.00028272,2]
[381485015,1756230740259,-500.0,0.00028272,2]
[381485016,1756230740268,-500.0,0.00028272,2]
[381485017,1756230740277,-500.0,0.00028272,2]
[381485018,1756230740286,-500.0,0.00028272,2]
[381485019,1756230740294,-500.0,0.00028272,2]
[381485020,1756230740303,-500.0,0.00028272,2]
[381485021,1756230740312,-500.0,0.00028272,2]
[381485022,1756230740321,-500.0,0.00028272,2]
[381485023,1756230740330,-500.0,0.00028272,2]
[381485024,1756230740339,-500.0,0.00028272,2]
[381485025,1756230740349,-500.0,0.00028272,2]
[381485026,1756230740358,-500.0,0.00028272,2]
[381485027,1756230740367,-500.0,0.00028272,2]
[381485028,1756230740376,-500.0,0.00028272,2]
[381485029,1756230740386,-500.0,0.00028272,2]
[381485030,1756230740395,-500.0,0.00028272,2]
[381485031,1756230740405,-500.0,0.00028272,2]
[381485032,1756230740414,-500.0,0.00028272,2]
[381485033,1756230740423,-500.0,0.00028272,2]
[381485034,1756230740433,-500.0,0.00028272,2]
[381485035,1756230740443,-500.0,0.00028272,2]
[381485036,1756230740452,-800.0,0.00028272,2]
[381485037,1756230740461,-500.0,0.00028272,2]
[381485038,1756230740471,-500.0,0.00028272,2]
[381485039,1756230740481,-500.0,0.00028272,2]
[381485040,1756230740490,-500.0,0.00028272,2]
[381485041,1756230740500,-500.0,0.00028272,2]
[381485042,1756230740510,-500.0,0.00028272,2]
[381485043,1756230740519,-500.0,0.00028272,2]
[381485044,1756230740529,-500.0,0.00028272,2]
[381485045,1756230740538,-500.0,0.00028272,2]
[381485046,1756230740547,-500.0,0.00028272,2]
[381485047,1756230740556,-500.0,0.00028272,2]
[381485048,1756230740565,-500.0,0.00028272,2]
[381485049,1756230740576,-1425.0,0.00028287,2]
[381485050,1756230740585,-1000.0,0.00028309,2]
[381485051,1756230740594,-1425.0,0.00028328,2]
[381485052,1756230740604,-1000.0,0.00028331,2]
[381485053,1756230740613,-1000.0,0.00028332,2]
[381485054,1756230740622,-150.0,0.00028344,2]
[381485055,1756230740631,-1425.0,0.00028366,2]
[381485056,1756230740640,-150.0,0.00028382,2]
[381485057,1756230740653,-23123.16488376,0.00028384,9]
[381485058,1756230740663,-1500.0,0.00028391,7]
[381485059,1756230740675,-1000.0,0.00028395,2]
[381485060,1756230740683,-6508.67,0.000284,7]
[381485061,1756230740696,-733.32410921,0.000284,2]
[381485062,1756230740718,-150.0,0.00028406,2]
[381485063,1756230740729,-1425.0,0.00028408,2]
[381485064,1756230740738,-150.0,0.00028415,2]
[381485065,1756230740749,-150.0,0.00028428,2]
[381485066,1756230740759,-1425.0,0.00028429,2]
[381485067,1756230740768,-150.0,0.00028439,2]
[381485068,1756230740778,-150.0,0.00028449,2]
[381485069,1756230740787,-151.84874432,0.00028457,2]
[381485070,1756230740795,-1000.0,0.00028457,2]
[381485071,1756230740805,-500.0,0.00028474,5]
[381485072,1756230740814,-1000.0,0.00028474,2]
[381485073,1756230740823,-528.93,0.00028474,5]
[381485074,1756230740833,-500.0,0.00028474,5]
[381485075,1756230740842,-500.0,0.00028474,5]
[381485076,1756230740852,-500.0,0.00028474,5]
[381485077,1756230740861,-500.0,0.00028474,5]
[381485078,1756230740870,-500.0,0.00028474,5]
[381485079,1756230740881,-500.0,0.00028474,5]
[381485080,1756230740890,-500.0,0.00028474,5]
[381485081,1756230740899,-1458.79,0.00028475,5]
[381485082,1756230740908,-400.0,0.00028475,5]
[381485083,1756230740917,-634.76,0.00028475,5]
[381485084,1756230740926,-400.0,0.00028475,5]
[381485085,1756230740935,-539.93,0.00028475,5]
[381485086,1756230740945,-690.63,0.00028475,5]
[381485087,1756230740954,-400.0,0.00028475,5]
[381485088,1756230740963,-1099.28,0.00028475,5]
[381485089,1756230740972,-598.43,0.00028475,5]
[381485090,1756230740981,-861.3,0.00028475,5]
[381485091,1756230740990,-400.0,0.00028475,5]
[381485092,1756230740999,-1174.77,0.00028475,5]
[381485093,1756230741009,-774.77,0.00028475,5]
[381485094,1756230741018,-400.0,0.00028475,5]
[381485095,1756230741027,-400.0,0.00028475,5]
[381485096,1756230741036,-1150.13,0.00028475,5]
[381485097,1756230741045,-554.69,0.00028475,5]
[381485098,1756230741055,-400.0,0.00028475,5]
[381485099,1756230741064,-689.46,0.00028475,5]
[381485100,1756230741073,-400.33487175,0.00028475,5]
[381485101,1756230741083,-400.0,0.00028475,5]
[381485102,1756230741092,-400.0,0.00028475,5]
[381485103,1756230741101,-400.0,0.00028475,5]
[381485104,1756230741110,-933.25,0.00028475,5]
[381485105,1756230741119,-989.27,0.00028475,5]
[381485106,1756230741128,-400.0,0.00028475,5]
[381485107,1756230741137,-400.0,0.00028475,5]
[381485108,1756230741147,-400.0,0.00028475,5]
[381485109,1756230741157,-820.77,0.00028475,5]
[381485110,1756230741165,-786.47,0.00028475,5]
[381485111,1756230741175,-615.26,0.00028475,5]
[381485112,1756230741183,-400.0,0.00028475,5]
[381485113,1756230741192,-617.18,0.00028475,5]
[381485114,1756230741202,-400.0,0.00028475,5]
[381485115,1756230741211,-400.0,0.00028475,5]
[381485116,1756230741220,-1146.58,0.00028475,5]
[381485117,1756230741229,-414.98,0.00028475,5]
[381485118,1756230741237,-400.0,0.00028475,5]
[381485119,1756230741249,-645.15,0.00028475,5]
[381485120,1756230741258,-400.0,0.00028475,5]
[381485121,1756230741267,-500.0,0.00028475,5]
[381485122,1756230741276,-380.42738179,0.00028475,5]
[381485123,1756230741285,-400.33719098,0.00028475,5]
[381485124,1756230741294,-400.0,0.00028475,5]
[381485125,1756230741303,-500.0,0.00028475,5]
[381485126,1756230741312,-400.0,0.00028475,5]
[381485127,1756230741321,-400.0,0.00028475,5]
[381485128,1756230741330,-1487.28,0.00028475,5]
[381485129,1756230741340,-400.0,0.00028475,5]
[381485130,1756230741349,-709.5,0.00028475,5]
[381485131,1756230741358,-781.03,0.00028475,5]
[381485132,1756230741367,-736.53,0.00028475,5]
[381485133,1756230741376,-400.0,0.00028475,5]
[381485134,1756230741386,-400.0,0.00028475,5]
[381485135,1756230741395,-401.36343743,0.00028475,5]
[381485136,1756230741404,-475.59,0.00028475,5]
[381485137,1756230741413,-400.0,0.00028475,5]
[381485138,1756230741422,-400.0,0.00028475,5]
[381485139,1756230741432,-400.0,0.00028475,5]
[381485140,1756230741441,-413.10104268,0.00028475,5]
[381485141,1756230741450,-400.0,0.00028475,5]
[381485142,1756230741460,-586.19,0.00028475,5]
[381485143,1756230741469,-1100.6,0.00028475,5]
[381485144,1756230741479,-400.0,0.00028475,5]
[381485145,1756230741488,-558.77,0.00028475,5]
[381485146,1756230741498,-1000.0,0.00028475,2]
[381485147,1756230741507,-528.93,0.00028475,5]
[381485148,1756230741517,-500.0,0.00028475,5]
[381485149,1756230741527,-500.0,0.00028475,5]
[381485150,1756230741537,-221.67931284,0.00028475,5]
[381485151,1756230741546,-400.0,0.00028475,5]
[381485152,1756230741555,-400.0,0.00028475,5]
[381485153,1756230741565,-805.61,0.00028475,5]
[381485154,1756230741574,-587.26,0.00028475,5]
[381485155,1756230741584,-500.0,0.00028475,5]
[381485156,1756230741593,-880.88,0.00028475,5]
[381485157,1756230741602,-500.0,0.00028475,5]
[381485158,1756230741611,-500.0,0.00028475,5]
[381485159,1756230741620,-500.0,0.00028475,5]
[381485160,1756230741629,-500.0,0.00028475,5]
[381485161,1756230741639,-500.0,0.00028475,5]
[381485162,1756230741648,-1000.0,0.00028483,2]
[381485163,1756230741656,-150.0,0.00028484,2]
[381485164,1756230741670,-500.0,0.00028484,5]
[381485165,1756230741679,-500.0,0.00028484,5]
[381485166,1756230741688,-500.0,0.00028484,5]
[381485167,1756230741697,-1000.0,0.00028484,2]
[381485168,1756230741706,-528.93,0.00028484,5]
[381485169,1756230741716,-500.0,0.00028484,5]
[381485170,1756230741725,-500.0,0.00028484,5]
[381485171,1756230741734,-500.0,0.00028484,5]
[381485172,1756230741747,-500.0,0.00028484,5]
[381485173,1756230741756,-500.0,0.00028484,5]
[381485174,1756230741766,-500.0,0.00028484,5]
[381485175,1756230741775,-500.0,0.00028484,5]
[381485176,1756230741785,-500.0,0.00028484,5]
[381485177,1756230741795,-500.0,0.00028484,5]
[381485178,1756230741805,-435.01616023,0.00028485,2]
[381485179,1756230741814,-150.0,0.00028489,2]
[381485180,1756230741824,-1142.86,0.00028492,5]
[381485181,1756230741834,-1254.63,0.00028492,5]
[381485182,1756230741845,-1057.93,0.00028492,5]
[381485183,1756230741855,-1079.24,0.00028492,5]
[381485184,1756230741865,-3055.95,0.00028492,5]
[381485185,1756230741875,-1650.32,0.00028492,5]
[381485186,1756230741885,-13513.14,0.00028492,5]
[381485187,1756230741895,-2253.65,0.00028492,5]
[381485188,1756230741904,-1270.75,0.00028492,5]
[381485189,1756230741913,-2157.11,0.00028492,5]
[381485190,1756230741922,-1950.58,0.00028492,5]
[381485191,1756230741932,-1356.06,0.00028492,5]
[381485192,1756230741942,-1314.24,0.00028492,5]
[381485193,1756230741951,-1468.69,0.00028492,5]
[381485194,1756230741961,-809.74,0.00028492,5]
[381485195,1756230741975,-1206.09,0.00028492,5]
[381485196,1756230741987,-741.88,0.00028492,5]
[381485197,1756230741997,-1611.27,0.00028492,5]
[381485198,1756230742006,-1224.97,0.00028492,5]
[381485199,1756230742016,-1049.32,0.00028492,5]
[381485200,1756230742025,-976.61,0.00028492,5]
[381485201,1756230742034,-1611.56,0.00028492,5]
[381485202,1756230742043,-869.98,0.00028492,5]
[381485203,1756230742053,-1131.94,0.00028492,5]
[381485204,1756230742063,-782.57,0.00028492,5]
[381485205,1756230742073,-1548.86,0.00028492,5]
[381485206,1756230742083,-1331.02,0.00028492,5]
[381485207,1756230742092,-1391.3,0.00028492,5]